[Event "41st Amateur D7"]
[Site "ChessGUI4"]
[Date "2013.07.11"]
[Round "32.5"]
[White "Waxman 2011"]
[Black "ProChess 1.02AD"]
[Result "1-0"]
[BlackElo "2244"]
[ECO "A29"]
[EventDate "2013.??.??"]
[TimeControl "40/1500:40/1500:40/1500"]
[WhiteElo "2256"]

{ i5 Quad } 1.c4 { [%eval 0,1] [%emt 0:00:00] } 1...e5
{ [%eval 0,1] [%emt 0:00:00] } 2.Nc3 { [%eval 0,1] [%emt 0:00:00] } 2...Nf6
{ [%eval 0,1] [%emt 0:00:00] } 3.Nf3 { [%eval 0,1] [%emt 0:00:00] } 3...Nc6
{ [%eval 0,1] [%emt 0:00:00] } 4.g3 { [%eval 0,1] [%emt 0:00:00] } 4...Bb4
{ [%eval 0,1] [%emt 0:00:00] } 5.Nd5 { [%eval 0,1] [%emt 0: 00:00] } 5...Bc5
{ [%eval 0,1] [%emt 0:00:00] } 6.Bg2 { [%eval 0,1] [%emt 0:00:00] } 6...O-O
{ [%eval 0,1] [%emt 0:00:00] } 7.O-O { [%eval 0,1] [%emt 0:00:00] } 7...d6
{ [%eval 0,1] [%emt 0:00:00] } 8.a3 { [%eval 0,1] [%emt 0:00:00] } 8...Nxd5
{ [%eval 0, 1] [%emt 0:00:00] } 9.cxd5 { [%eval -57,12] [%emt 0:00:32] }
9...Nd4 { [%eval 8,14] [%emt 0:01:18] (Nd4) } 10.Nxd4
{ [%eval -34,13] [%emt 0:00:51] (Nxd4) } 10...exd4
{ [%eval 10,13] [%emt 0:01:05] (exd4) } 11.d3
{ [%eval -31,13] [%emt 0:00:27] (e4) } 11...Bg4
{ [%eval 11,12] [%emt 0:01:01] (Re8) } 12.h3
{ [%eval -25,14] [%emt 0:00: 46] (Re1) } 12...Bd7
{ [%eval 9,12] [%emt 0:00:44] (Bf5) } 13.Bf4
{ [%eval -25,14] [%emt 0:00:34] (e4) } 13...Qf6
{ [%eval 11,12] [%emt 0:01:55] (Re8) } 14.Rc1
{ [%eval -25,13] [%emt 0:00:42] (Re1) } 14...g5
{ [%eval 17,11] [%emt 0:00:33] (Rfe8) } 15.Bd2
{ [%eval 27,13] [%emt 0:00:38] (Bd2) } 15...Bb6
{ [%eval 7,11] [%emt 0:01:03] (Bb6) } 16.b4
{ [%eval 15,13] [%emt 0:00:35] (Qb3) } 16...Rfc8
{ [%eval 8,11] [%emt 0:00:43] (Rfc8) } 17.Re1
{ [%eval 7,13] [%emt 0:00:50] (e3) } 17...g4
{ [%eval 11,11] [%emt 0: 00:37] (a5) } 18.hxg4
{ [%eval 9,12] [%emt 0:00:16] (hxg4) } 18...Bxg4
{ [%eval 1,13] [%emt 0:00:59] (Bxg4) } 19.Rc4
{ [%eval 40,13] [%emt 0:01:09] (Qb3) } 19...a6
{ [%eval -3,11] [%emt 0:00:33] (h5) } 20.a4
{ [%eval 69,13] [%emt 0:01:19] (a4) } 20...Ba7
{ [%eval 0,12] [%emt 0:00:21] (Qe7) } 21.Qc1
{ [%eval 66,12] [%emt 0:00:37] (Qc1) } 21...Qd8
{ [%eval -15,12] [%emt 0:00:36] (Qe7) } 22.Bg5
{ [%eval 115,13] [%emt 0:00:37] (a5) } 22...f6
{ [%eval -18,13] [%emt 0:00:32] (f6) } 23.Bh4
{ [%eval 98,13] [%emt 0:00:53] (Bh4) } 23...Kg7
{ [%eval -25,12] [%emt 0:00:36] (Kg7) } 24.Qf4
{ [%eval 111,13] [%emt 0:00:56] (e4) } 24...Bd7
{ [%eval -27,11] [%emt 0:00:21] (Bd7) } 25.Rec1
{ [%eval 147,12] [%emt 0:01:04] (a5) } 25...Bb6
{ [%eval -74,11] [%emt 0:00: 26] (h6) } 26.a5
{ [%eval 433,12] [%emt 0:01:42] (a5) } 26...Bb5
{ [%eval -332,11] [%emt 0:00:19] (Bb5) } 27.R4c2
{ [%eval 445,12] [%emt 0:00:54] (R4c2) } 27...Ba4
{ [%eval -354,12] [%emt 0:00:23] (Ba4) } 28.Ra2
{ [%eval 421,12] [%emt 0:00:45] (Ra2) } 28...Bd7
{ [%eval -363,11] [%emt 0:00:20] (Bd7) } 29.axb6
{ [%eval 476,11] [%emt 0:00:47] (axb6) } 29...cxb6
{ [%eval -444,14] [%emt 0:01:17] (cxb6) } 30.Rxc8
{ [%eval 503,14] [%emt 0:00:50] (Rxc8) } 30...Rxc8
{ [%eval -447,13] [%emt 0:00:14] (Rxc8) } 31.Qxd6
{ [%eval 505,12] [%emt 0:00:28] (Qxd6) } 31...Be8
{ [%eval -456,12] [%emt 0:00:25] (Be8) } 32.Qf4
{ [%eval 550,13] [%emt 0:00:35] (Qf4) } 32...Rc3
{ [%eval -477,11] [%emt 0:00:22] (Rc3) } 33.Kh2
{ [%eval 571,12] [%emt 0:00:56] (d6) } 33...Rb3
{ [%eval -461,11] [%emt 0:00:23] (Bf7) } 34.d6
{ [%eval 628,12] [%emt 0:00:47] (d6) } 34...Bd7
{ [%eval -526,11] [%emt 0:01:11] (Bd7) } 35.Bd5
{ [%eval 739, 12] [%emt 0:00:46] (Bxb7) } 35...Rb1
{ [%eval -636,11] [%emt 0:00:44] (Rc3) } 36.Rc2
{ [%eval 1064,12] [%emt 0:00:34] (Bxb7) } 36...Bc6
{ [%eval -1057,11] [%emt 0:00:39] (Bc6) } 37.Bxc6
{ [%eval 1323,12] [%emt 0:00:34] (Bxc6) } 37...bxc6
{ [%eval -1413,11] [%emt 0:00:41] (bxc6) } 1-0

[Event "41st Amateur D7"]
[Site "ChessGUI4"]
[Date "2013.07.11"]
[Round "33.1"]
[White "Carballo 0.8"]
[Black "ChessKiss 1.7 64-bit"]
[Result "1-0"]
[BlackElo "2214"]
[ECO "C11"]
[EventDate "2013.??.??"]
[TimeControl "40/1500:40/1500:40/1500"]
[WhiteElo "2273"]

{ i5 Quad } 1.e4 { [%eval 0,1] [%emt 0:00:00] } 1...e6
{ [%eval 0,1] [%emt 0:00:00] } 2.d4 { [%eval 0,1] [%emt 0:00:00] } 2...d5
{ [%eval 0,1] [%emt 0:00:00] } 3.Nc3 { [%eval 0,1] [%emt 0:00:00] } 3...Nf6
{ [%eval 0,1] [%emt 0:00:00] } 4.e5 { [%eval 0,1] [%emt 0:00:00] } 4...Nfd7
{ [%eval 0,1] [%emt 0:00:00] } 5.f4 { [%eval 0,1] [%emt 0: 00:00] } 5...c5
{ [%eval 0,1] [%emt 0:00:00] } 6.Nf3 { [%eval 0,1] [%emt 0:00:00] } 6...Nc6
{ [%eval 0,1] [%emt 0:00:00] } 7.Be3 { [%eval 0,1] [%emt 0:00:00] } 7...cxd4
{ [%eval 0,1] [%emt 0:00:00] } 8.Nxd4 { [%eval 0,1] [%emt 0:00:00] } 8...Bc5
{ [%eval 0,1] [%emt 0:00:00] } 9.Qd2 { [%eval -9,13] [%emt 0:00:37] } 9...O-O
{ [%eval 2,12] [%emt 0:00:53] (Bxd4) } 10.Be2
{ [%eval -16,13] [%emt 0:00:36] (O-O-O) } 10...Ndxe5
{ [%eval 47,12] [%emt 0:00:41] (Nxd4) } 11.Nxc6
{ [%eval 5,15] [%emt 0:00:35] (Nxc6) } 11...Bxe3
{ [%eval 44,14] [%emt 0:00:40] (Bxe3) } 12.Nxd8
{ [%eval -6,15] [%emt 0:00:34] (Nxd8) } 12...Bxd2+
{ [%eval 52,15] [%emt 0:00:39] (Bxd2) } 13.Kxd2
{ [%eval -19,16] [%emt 0:00:33] (Kxd2) } 13...Nd7
{ [%eval 60,15] [%emt 0:00:39] (Nd7) } 14.Nxe6
{ [%eval -23,13] [%emt 0:00:32] (Nxe6) } 14...fxe6
{ [%eval 35,15] [%emt 0:00: 35] (fxe6) } 15.Rhf1
{ [%eval -17,13] [%emt 0:00:32] (Rhf1) } 15...Nf6
{ [%eval 45,14] [%emt 0:00:37] (a5) } 16.g4
{ [%eval -18,13] [%emt 0:00:31] (Rad1) } 16...Bd7
{ [%eval 78,13] [%emt 0:00:37] (a6) } 17.g5
{ [%eval -16,14] [%emt 0:00:30] (Bf3) } 17...Ne4+
{ [%eval 74,14] [%emt 0:00:33] (Ne8) } 18.Nxe4
{ [%eval 40,15] [%emt 0:00: 29] (Nxe4) } 18...dxe4
{ [%eval 56,13] [%emt 0:00:32] (dxe4) } 19.Ke3
{ [%eval 40,14] [%emt 0:00:29] (Ke3) } 19...Bc6
{ [%eval 27,12] [%emt 0:00:31] (Bc6) } 20.Rad1
{ [%eval 46,14] [%emt 0:00:28] (Bc4) } 20...Bd5
{ [%eval 29,13] [%emt 0:00:29] (Kf7) } 21.c4
{ [%eval 110,17] [%emt 0:00:27] (c3) } 21...Bc6
{ [%eval -69,15] [%emt 0:00:30] (Bc6) } 22.Bg4
{ [%eval 110,15] [%emt 0:00:26] (Bg4) } 22...Rfe8
{ [%eval -84,14] [%emt 0:00:30] (Rae8) } 23.Rd6
{ [%eval 129,16] [%emt 0:00:26] (Rd6) } 23...Kf7
{ [%eval -106,14] [%emt 0:00:28] (Kf7) } 24.f5
{ [%eval 168,15] [%emt 0:00:25] (f5) } 24...exf5
{ [%eval -183,14] [%emt 0:00:27] (exf5) } 25.Bxf5
{ [%eval 163,16] [%emt 0:00:24] (Bxf5) } 25...Kg8
{ [%eval -193,14] [%emt 0:00:29] (Kg8) } 26.Be6+
{ [%eval 167,16] [%emt 0:00:24] (Be6) } 26...Kh8
{ [%eval -202,15] [%emt 0:00:27] (Kh8) } 27.Bd7
{ [%eval 159,15] [%emt 0:00:23] (Bd7) } 27...Red8
{ [%eval -200,15] [%emt 0:00: 24] (Red8) } 28.Rfd1
{ [%eval 160,16] [%emt 0:00:23] (Rfd1) } 28...Bxd7
{ [%eval -206, 14] [%emt 0:00:24] (Rf8) } 29.Rxd7
{ [%eval 189,14] [%emt 0:00:22] (Rxd7) } 29...Rxd7
{ [%eval -249,15] [%emt 0:00:24] (Rf8) } 30.Rxd7
{ [%eval 184,16] [%emt 0:00:21] (Rxd7) } 30...Rb8
{ [%eval -249,16] [%emt 0:00:23] (b6) } 31.Kxe4
{ [%eval 206,16] [%emt 0:00:21] (Kxe4) } 31...h6
{ [%eval -299,16] [%emt 0:00:23] (Kg8) } 32.gxh6
{ [%eval 219,15] [%emt 0:00:20] (gxh6) } 32...gxh6
{ [%eval -451,16] [%emt 0:00:21] (gxh6) } 33.Kd5
{ [%eval 223,15] [%emt 0:00:20] (c5) } 33...h5
{ [%eval -474,16] [%emt 0:00:20] (a5) } 34.b4
{ [%eval 256,17] [%emt 0:00:19] (c5) } 34...a6
{ [%eval -512,16] [%emt 0:00:21] (a6) } 35.Kd6
{ [%eval 265,16] [%emt 0:00:19] (c5) } 35...Rg8
{ [%eval -515,15] [%emt 0:00:19] (a5) } 36.Rxb7
{ [%eval 333,14] [%emt 0:00:18] (Rxb7) } 36...Rg6+
{ [%eval -512,14] [%emt 0:00:20] (Rg6) } 37.Ke5
{ [%eval 311,14] [%emt 0:00: 18] (Kc5) } 37...Rg2
{ [%eval -591,15] [%emt 0:00:18] (Rg2) } 38.c5
{ [%eval 330,14] [%emt 0:00:17] (c5) } 38...Rc2
{ [%eval -622,14] [%emt 0:00:18] (Rc2) } 39.Kd4
{ [%eval 328,13] [%emt 0:00:17] (a4) } 39...h4
{ [%eval -569,14] [%emt 0:00:17] (Kg8) } 40.h3
{ [%eval 358,15] [%emt 0:00:17] (h3) } 40...Kg8
{ [%eval -616,14] [%emt 0:00:17] (Kg8) } 41.Ra7
{ [%eval 431,16] [%emt 0:00:54] (a4) } 41...Rd2+
{ [%eval -634,15] [%emt 0:00:59] (Rd2) } 42.Kc3
{ [%eval 456,17] [%emt 0:00:52] (Kc4) } 42...Rh2
{ [%eval -818,16] [%emt 0:00:57] (Rd1) } 43.c6
{ [%eval 603,17] [%emt 0:00:51] (c6) } 43...Rxh3+
{ [%eval -1141,17] [%emt 0:00:55] (Rxh3) } 44.Kd4
{ [%eval 714,17] [%emt 0:00:50] (Kd4) } 44...Rh1
{ [%eval -1263,17] [%emt 0:00:54] (Rh1) } 45.c7
{ [%eval 696,16] [%emt 0:00:48] (c7) } 45...Rc1
{ [%eval -1387,16] [%emt 0:00:53] (Rd1) } 46.Ra8+
{ [%eval 876,17] [%emt 0:00:47] (Ra8) } 1-0

[Event "41st Amateur D7"]
[Site "ChessGUI4"]
[Date "2013.07.11"]
[Round "33.2"]
[White "FireFly 2.6.0 64-bit"]
[Black "Shallow 1.0 64-bit"]
[Result "0-1"]
[BlackElo "2200"]
[ECO "A04"]
[EventDate "2013.??.??"]
[TimeControl "40/1500:40/1500:40/1500"]
[WhiteElo "2258"]

{ i5 Quad } 1.Nf3 { [%eval 0,1] [%emt 0:00:00] } 1...b6
{ [%eval 0,1] [%emt 0:00:00] } 2.g3 { [%eval 0,1] [%emt 0:00:00] } 2...Bb7
{ [%eval 0,1] [%emt 0:00:00] } 3.Bg2 { [%eval 0,1] [%emt 0:00:00] } 3...e5
{ [%eval 0,1] [%emt 0:00:00] } 4.c4 { [%eval 0,1] [%emt 0:00:00] } 4...g6
{ [%eval 0,1] [%emt 0:00:00] } 5.d4 { [%eval 0,1] [%emt 0:00: 00] } 5...exd4
{ [%eval 0,1] [%emt 0:00:00] } 6.Qxd4 { [%eval 0,1] [%emt 0:00:00] } 6...Nf6
{ [%eval 0,1] [%emt 0:00:00] } 7.Nc3 { [%eval 0,1] [%emt 0:00:00] } 7...Bg7
{ [%eval 0, 1] [%emt 0:00:00] } 8.O-O { [%eval 0,1] [%emt 0:00:00] } 8...Nc6
{ [%eval 0,1] [%emt 0:00:00] } 9.Qe3+ { [%eval 62,12] [%emt 0:00:57] }
9...Ne7 { [%eval -5,14] [%emt 0:00: 42] (Ne7) } 10.Qd3
{ [%eval 62,11] [%emt 0:00:56] (c5) } 10...d6
{ [%eval -3,13] [%emt 0:00:42] } 11.Re1
{ [%eval 60,11] [%emt 0:00:56] (Bg5) } 11...Qd7
{ [%eval -3,12] [%emt 0:00:42] (O-O) } 12.e4
{ [%eval 69,11] [%emt 0:00:55] (e4) } 12...O-O
{ [%eval -5,13] [%emt 0:00:42] (O-O-O) } 13.e5
{ [%eval 74,12] [%emt 0:00:54] (e5) } 13...dxe5
{ [%eval -7,14] [%emt 0:00:42] (dxe5) } 14.Nxe5
{ [%eval 60,13] [%emt 0:00:53] (Nxe5) } 14...Qc8
{ [%eval -7,13] [%emt 0:00:42] (Qxd3) } 15.Bxb7
{ [%eval 70,12] [%emt 0:00:52] (Bf4) } 15...Qxb7
{ [%eval -13,13] [%emt 0:00:42] (Qxb7) } 16.Bf4
{ [%eval 63,11] [%emt 0:00:43] (Bg5) } 16...Nf5
{ [%eval -10,12] [%emt 0:00:42] (Rfe8) } 17.Bg5
{ [%eval 51,11] [%emt 0:00:42] (Bg5) } 17...Rfe8
{ [%eval -4,12] [%emt 0:00:42] (Rfe8) } 18.Rad1
{ [%eval 46,10] [%emt 0:00:42] (Rad1) } 18...Re6
{ [%eval 1,12] [%emt 0:00:42] (h6) } 19.Bxf6
{ [%eval 32,11] [%emt 0:00:42] (Bxf6) } 19...Bxf6
{ [%eval 3, 13] [%emt 0:00:42] (Bxf6) } 20.f4
{ [%eval 17,11] [%emt 0:00:41] (Ng4) } 20...Rae8
{ [%eval 16,12] [%emt 0:00:42] (Rae8) } 21.Ne4
{ [%eval 22,11] [%emt 0:00:41] (Ne4) } 21...Bg7
{ [%eval 23,12] [%emt 0:00:42] (Bg7) } 22.Qb3
{ [%eval 4,10] [%emt 0: 00:41] (Qb3) } 22...Nd6
{ [%eval 22,12] [%emt 0:00:42] (R6e7) } 23.Ng5
{ [%eval 8,11] [%emt 0:00:40] (Ng5) } 23...R6e7
{ [%eval 22,12] [%emt 0:00:42] (R6e7) } 24.Ngf3
{ [%eval 0,11] [%emt 0:00:40] (Rd5) } 24...Qa8
{ [%eval 21,12] [%emt 0:00:42] (Bxe5) } 25.Rd3
{ [%eval -5,10] [%emt 0:00:39] (Re3) } 25...Ne4
{ [%eval 24,12] [%emt 0:00:42] (Nb7) } 26.Rde3
{ [%eval -2,12] [%emt 0:00:39] (Rde3) } 26...Nc5
{ [%eval 20,13] [%emt 0:00:42] (Nc5) } 27.Qd1
{ [%eval -8,12] [%emt 0:00:38] (Qd1) } 27...a5
{ [%eval 15,13] [%emt 0:00:42] (f6) } 28.Nd4
{ [%eval 14,11] [%emt 0:00:38] (a3) } 28...Rd8
{ [%eval 24,12] [%emt 0:00:42] (f6) } 29.Qf3
{ [%eval -12,12] [%emt 0:00:37] (R1e2) } 29...Qxf3
{ [%eval 23,14] [%emt 0:00:42] (Qxf3) } 30.Ndxf3
{ [%eval -4,12] [%emt 0:00:37] (Ndxf3) } 30...f6
{ [%eval 21,15] [%emt 0:00:42] (Rd6) } 31.Nc6
{ [%eval -11,12] [%emt 0:00:36] (Nc6) } 31...Rxe3
{ [%eval 19,15] [%emt 0:00:42] (Rxe3) } 32.Rxe3
{ [%eval -5, 12] [%emt 0:00:29] (Rxe3) } 32...Rd1+
{ [%eval 18,14] [%emt 0:00:42] (Rd1) } 33.Re1
{ [%eval -18,12] [%emt 0:00:29] (Re1) } 33...Rxe1+
{ [%eval 19,15] [%emt 0:00:42] (Rxe1) } 34.Nxe1
{ [%eval 1,12] [%emt 0:00:29] (Nxe1) } 34...f5
{ [%eval 19,15] [%emt 0:00: 42] (Kf7) } 35.b3
{ [%eval -18,14] [%emt 0:00:29] (b3) } 35...Kf7
{ [%eval 19,15] [%emt 0:00:42] (a4) } 36.Nf3
{ [%eval -11,13] [%emt 0:00:29] (Nf3) } 36...Ke6
{ [%eval 17,14] [%emt 0:00:42] (Ke6) } 37.Kg2
{ [%eval -26,12] [%emt 0:00:29] (Kf2) } 37...Nd3
{ [%eval 26,14] [%emt 0:00:42] (Nd3) } 38.Ng5+
{ [%eval -35,12] [%emt 0:00:29] (Ncd4) } 38...Kd6
{ [%eval 38,15] [%emt 0:00:42] (Kd6) } 39.Na7
{ [%eval -110, 13] [%emt 0:00:29] (Na7) } 39...c6
{ [%eval 75,14] [%emt 0:00:56] (Nc1) } 40.Nc8+
{ [%eval -98,12] [%emt 0:00:29] (a3) } 40...Kc7
{ [%eval 109,16] [%emt 0:00:39] (Kc7) } 41.Ne6+
{ [%eval -177,14] [%emt 0:00:36] (Ne6) } 41...Kxc8
{ [%eval 134,17] [%emt 0: 00:37] (Kxc8) } 42.Nxg7
{ [%eval -312,16] [%emt 0:00:36] (Nxg7) } 42...Kd7
{ [%eval 196,17] [%emt 0:00:37] (Kd7) } 43.h4
{ [%eval -339,16] [%emt 0:00:36] (g4) } 43...Nc1
{ [%eval 218,16] [%emt 0:00:37] (h5) } 44.a4
{ [%eval -351,16] [%emt 0:00:36] (Kf3) } 44...Nxb3
{ [%eval 240,16] [%emt 0:00:37] (h5) } 45.h5
{ [%eval -473,17] [%emt 0:00:36] (g4) } 45...Nc5
{ [%eval 261,17] [%emt 0:00:37] (b5) } 46.g4
{ [%eval -420,17] [%emt 0:00:36] (Kf3) } 46...fxg4
{ [%eval 288,17] [%emt 0:00:37] (fxg4) } 47.f5
{ [%eval -496,17] [%emt 0:00:36] (f5) } 47...gxf5
{ [%eval 312,18] [%emt 0:00:37] (gxf5) } 48.Nxf5
{ [%eval -505,17] [%emt 0:00:36] (Nxf5) } 48...Nxa4
{ [%eval 308,17] [%emt 0:00:37] (Nxa4) } 49.Ne3
{ [%eval -584,16] [%emt 0:00:36] (Kg3) } 49...Nb2
{ [%eval 336,17] [%emt 0:00:37] (Nc3) } 50.Kg3
{ [%eval -508,17] [%emt 0:00:36] (Kg3) } 50...a4
{ [%eval 339,17] [%emt 0:00:37] (Ke6) } 51.Kxg4
{ [%eval -546,17] [%emt 0:00:36] (Kxg4) } 51...a3
{ [%eval 377,16] [%emt 0:00:37] (a3) } 52.c5
{ [%eval -674,17] [%emt 0:00:36] (Nc2) } 52...b5
{ [%eval 460,15] [%emt 0:00:37] (a2) } 53.Nc2
{ [%eval -713, 17] [%emt 0:00:36] (Nc2) } 53...a2
{ [%eval 463,13] [%emt 0:00:37] (a2) } 54.Kf3
{ [%eval -765,18] [%emt 0:00:36] (Kf4) } 54...Nd3
{ [%eval 475,15] [%emt 0:00:37] (Nd3) } 55.Ke3
{ [%eval -765,18] [%emt 0:00:36] (Ke4) } 55...Nxc5
{ [%eval 475,16] [%emt 0:00: 37] (Nxc5) } 56.Kd4
{ [%eval -783,17] [%emt 0:00:36] (Kd4) } 56...Ne6+
{ [%eval 475,16] [%emt 0:00:37] (Nb3) } 57.Kc3
{ [%eval -641,16] [%emt 0:00:36] (Kc3) } 57...Ng7
{ [%eval 475,16] [%emt 0:00:37] (Nf4) } 0-1

[Event "41st Amateur D7"]
[Site "ChessGUI4"]
[Date "2013.07.11"]
[Round "33.3"]
[White "Tigran 2.3 64-bit"]
[Black "MadChess 1.2"]
[Result "1-0"]
[BlackElo "2200"]
[ECO "A25"]
[EventDate "2013.??.??"]
[TimeControl "40/1500:40/1500:40/1500"]
[WhiteElo "2289"]

{ i5 Quad } 1.c4 { [%eval 0,1] [%emt 0:00:00] } 1...e5
{ [%eval 0,1] [%emt 0:00:00] } 2.g3 { [%eval 0,1] [%emt 0:00:00] } 2...Nc6
{ [%eval 0,1] [%emt 0:00:00] } 3.Bg2 { [%eval 0,1] [%emt 0:00:00] } 3...g6
{ [%eval 0,1] [%emt 0:00:00] } 4.Nc3 { [%eval 0,1] [%emt 0:00:00] } 4...Bg7
{ [%eval 0,1] [%emt 0:00:00] } 5.Rb1 { [%eval 0,1] [%emt 0: 00:00] } 5...f5
{ [%eval 0,1] [%emt 0:00:00] } 6.b4 { [%eval 0,1] [%emt 0:00:00] } 6...Nf6
{ [%eval 0,1] [%emt 0:00:00] } 7.b5 { [%eval 0,1] [%emt 0:00:00] } 7...Ne7
{ [%eval 0, 1] [%emt 0:00:00] } 8.Qb3 { [%eval 0,1] [%emt 0:00:00] } 8...d6
{ [%eval 0,1] [%emt 0: 00:00] } 9.d3 { [%eval 24,13] [%emt 0:00:42] } 9...h6
{ [%eval -5,11] [%emt 0:00:35] (h6) } 10.Nf3
{ [%eval 25,13] [%emt 0:00:42] (Nf3) } 10...Be6
{ [%eval -7,11] [%emt 0: 00:24] (Be6) } 11.O-O
{ [%eval 22,13] [%emt 0:00:42] (O-O) } 11...O-O
{ [%eval -12,10] [%emt 0:00:20] (e8g8) } 12.e3
{ [%eval 27,12] [%emt 0:00:35] (h3) } 12...Rb8
{ [%eval 0,9] [%emt 0:00:27] (Nd7) } 13.Ba3
{ [%eval 31,12] [%emt 0:00:43] (Ba3) } 13...Nd7
{ [%eval 0,10] [%emt 0:00:46] (g5) } 14.d4
{ [%eval 35,12] [%emt 0:00:34] (Rfe1) } 14...Nb6
{ [%eval 19,11] [%emt 0:00:54] (e4) } 15.d5
{ [%eval 46,13] [%emt 0:00:43] (d5) } 15...Bf7
{ [%eval 32,11] [%emt 0:02:12] (Bf7) } 16.Rfd1
{ [%eval 36,13] [%emt 0: 00:44] (Nd2) } 16...Qd7
{ [%eval 17,10] [%emt 0:00:59] (Bf6) } 17.c5
{ [%eval 38,12] [%emt 0:00:36] (h3) } 17...dxc5
{ [%eval 42,11] [%emt 0:00:43] (dxc5) } 18.Bxc5
{ [%eval 31,12] [%emt 0:00:38] (Bxc5) } 18...e4
{ [%eval 26,10] [%emt 0:00:31] (e4) } 19.Nd4
{ [%eval -2,13] [%emt 0:00:45] (Nd4) } 19...Nbxd5
{ [%eval 33,10] [%emt 0:00:33] (Nexd5) } 20.Nxd5
{ [%eval 42,13] [%emt 0:00:45] (Nxd5) } 20...Bxd5
{ [%eval 27,10] [%emt 0:00:17] (Nxd5) } 21.Qa3
{ [%eval 34,13] [%emt 0:00:39] (Qa3) } 21...Bf6
{ [%eval -8,10] [%emt 0:00:19] (Bf6) } 22.Ne2
{ [%eval 27,13] [%emt 0:00:45] (Ne2) } 22...g5
{ [%eval 15,10] [%emt 0:00:22] (Rfd8) } 23.Nc3
{ [%eval 45,12] [%emt 0:00: 40] (Bxe7) } 23...Rfe8
{ [%eval 14,10] [%emt 0:00:19] (Rfe8) } 24.Bf1
{ [%eval 33,12] [%emt 0:00:47] (Bxe7) } 24...c6
{ [%eval 13,11] [%emt 0:00:55] (c6) } 25.Nxd5
{ [%eval 44,12] [%emt 0:00:46] (Nxd5) } 25...Nxd5
{ [%eval 8,11] [%emt 0:00:23] (cxd5) } 26.Qxa7
{ [%eval 108,13] [%emt 0:00:41] (Qxa7) } 26...Rbd8
{ [%eval -20,12] [%emt 0: 00:48] (Rbc8) } 27.Bc4
{ [%eval 118,13] [%emt 0:00:48] (Bc4) } 27...Qf7
{ [%eval -32, 12] [%emt 0:00:35] (Qf7) } 28.bxc6
{ [%eval 129,13] [%emt 0:00:48] (bxc6) } 28...bxc6
{ [%eval -54,12] [%emt 0:00:18] (bxc6) } 29.Qa6
{ [%eval 201,13] [%emt 0:00:48] (Qb7) } 29...Re6
{ [%eval -55,13] [%emt 0:00:48] (Rc8) } 30.Rb6
{ [%eval 214,14] [%emt 0:00:49] (Rb7) } 30...Qh5
{ [%eval -93,13] [%emt 0:00:42] (Nxb6) } 31.Rd2
{ [%eval 377, 12] [%emt 0:00:49] (Qa4) } 31...Bc3
{ [%eval -223,12] [%emt 0:00:26] (Bc3) } 32.Rxc6
{ [%eval 520,13] [%emt 0:00:50] (Rxc6) } 32...Rxc6
{ [%eval -435,12] [%emt 0:00:43] (Rxc6) } 33.Qxc6
{ [%eval 586,14] [%emt 0:00:50] (Qxc6) } 33...Bxd2
{ [%eval -472,14] [%emt 0:00:30] (Bxd2) } 34.Bxd5+
{ [%eval 601,15] [%emt 0:00:51] (Bxd5) } 34...Rxd5
{ [%eval -532,16] [%emt 0:00:50] (Rxd5) } 35.Qxd5+
{ [%eval 610,15] [%emt 0:00:52] (Qxd5) } 35...Qf7
{ [%eval -606,16] [%emt 0:01:48] (Qf7) } 36.Qxd2
{ [%eval 626,15] [%emt 0:00:53] (Qxd2) } 36...f4
{ [%eval -613,15] [%emt 0:05:02] (Kh7) } 37.exf4
{ [%eval 827,14] [%emt 0:00:54] (gxf4) } 37...gxf4
{ [%eval -653,12] [%emt 0:00:13] (gxf4) } 1-0